Workbook

Sheet Simulation
A1: Case II Solution
A2: Inputs
A3: Purchase Price | B3: 151698
A4: Land Value | B4: 100000
A5: Improvement Value | B5: =B3-B4 -> 51698
A7: Investors Criteria and Contribution
A8: Initial Equity Investment | B8: 75000
A9: Investors Required Rate of Return | B9: 0
A11: Financing Information
A12: Mortgage Amount | B12: =B3-B8 -> 76698
A13: Financing Term (Years) | B13: 25
A14: No. of Payment Per Year | B14: 12
A15: Annual Mortgage Interest Rate | B15: 0.07
A16: Private Mortgage Insurance (yearly) | B16: 0
A18: Tax Information
A19: Depreciable Life (27.5 Res 39 Comm) | B19: 39
A20: Marginal Income Tax Rate | B20: 0.28
A21: Capital Gains Tax Rate | B21: 0.2
A22: Recapture Tax Rate | B22: 0.25
A23: Investor's Modified Adjusted Gross Inc. | B23: 170000
A24: Investor's Participation, Active? Y/N | B24: y
A26: Forecast Operating Data
A27: First Year forecast PGI | B27: 51043
A28: Annual Growth in PGI | B28: 0
A29: % Annual Vacancy | B29: 0.06
A30: % Operating Expenses of EFI | B30: 0.31
A32: Future Sales Information
A33: Forecast Future Sales Price | B33: 427565.1762
A34: Future Selling Expenses | B34: 0.01971668501
B36: 0 | C36: 1 | D36: 2 | E36: 3 | F36: 4 | G36: 5 | I36: Termination (Reversion) Statement
A37: Potential Gross Income | C37: =B27 -> 51043 | D37: =C37*(1+$B$28) -> 51043 | E37: =D37*(1+$B$28) -> 51043 | F37: =E37*(1+$B$28) -> 51043 | G37: =F37*(1+$B$28) -> 51043 | I37: Gross Future Sales Price | J37: =$B$33 -> 427565.1762
A38: Less Vacancy & Collection Loss | C38: =-$B$29*C37 -> -3062.58 | D38: =-$B$29*D37 -> -3062.58 | E38: =-$B$29*E37 -> -3062.58 | F38: =-$B$29*F37 -> -3062.58 | G38: =-$B$29*G37 -> -3062.58 | I38: Less Selling Expenses | J38: =-(J37*B34) -> -8430.167899
A39: Plus Other Income | C39: 0 | D39: 0 | E39: 0 | F39: 0 | G39: 0 | I39: Net Sales Proceeds | J39: =SUM(J37:J38) -> 419135.0083
A40: Effective Gross Income | C40: =SUM(C37:C39) -> 47980.42 | D40: =SUM(D37:D39) -> 47980.42 | E40: =SUM(E37:E39) -> 47980.42 | F40: =SUM(F37:F39) -> 47980.42 | G40: =SUM(G37:G39) -> 47980.42 | I40: Less Mortgage Balance | J40: =-PV($B$15/12,($B$13-5)*12,$C$44/12,0,0) -> -69919.54765
A41: LessOperating Expenses | C41: =-$B$30*C40 -> -14873.9302 | D41: =-$B$30*D40 -> -14873.9302 | E41: =-$B$30*E40 -> -14873.9302 | F41: =-$B$30*F40 -> -14873.9302 | G41: =-$B$30*G40 -> -14873.9302 | I41: Before Tax Cash on Sale | J41: =SUM(J39:J40) -> 349215.4606
A42: Net Operating Income | C42: =SUM(C40:C41) -> 33106.4898 | D42: =SUM(D40:D41) -> 33106.4898 | E42: =SUM(E40:E41) -> 33106.4898 | F42: =SUM(F40:F41) -> 33106.4898 | G42: =SUM(G40:G41) -> 33106.4898
A43: Less Private Mortage Insurance | C43: =-$B$16 -> 0 | D43: =-$B$16 -> 0 | E43: =-$B$16 -> 0 | F43: =-$B$16 -> 0 | G43: =-$B$16 -> 0 | I43: Net Sales Proceeds | J43: =J39 -> 419135.0083
A44: Less Annualized Mortgage Payments | C44: =PMT($B$15/$B$14,($B$13*$B$14),$B$12,0,0)*$B$14 -> -6505.026105 | D44: =PMT($B$15/$B$14,($B$13*$B$14),$B$12,0,0)*$B$14 -> -6505.026105 | E44: =PMT($B$15/$B$14,($B$13*$B$14),$B$12,0,0)*$B$14 -> -6505.026105 | F44: =PMT($B$15/$B$14,($B$13*$B$14),$B$12,0,0)*$B$14 -> -6505.026105 | G44: =PMT($B$15/$B$14,($B$13*$B$14),$B$12,0,0)*$B$14 -> -6505.026105 | I44: Less Cost Basis | J44: =-$B$3 -> -151698
A45: Before Tax Cash Flows | C45: =SUM(C42:C44) -> 26601.4637 | D45: =SUM(D42:D44) -> 26601.4637 | E45: =SUM(E42:E44) -> 26601.4637 | F45: =SUM(F42:F44) -> 26601.4637 | G45: =SUM(G42:G44) -> 26601.4637 | I45: Capital Gain (Economic Gain) | J45: =SUM(J43:J44) -> 267437.0083
A46: Less Annual Depreciation | C46: =-$B$5/$B$19 -> -1325.589744 | D46: =-$B$5/$B$19 -> -1325.589744 | E46: =-$B$5/$B$19 -> -1325.589744 | F46: =-$B$5/$B$19 -> -1325.589744 | G46: =-$B$5/$B$19 -> -1325.589744 | I46: X Capital Gains Rate | J46: =B21 -> 0.2
A47: Plus Annual Principal Paid | C47: =PV($B$15/12,($B$13*$B$14-B36*12),($C$44/12),0,0)-PV($B$15/12,($B$13*$B$14-C36*12),($C$44/12),0,0) -> 1173.33628 | D47: =PV($B$15/12,($B$13*$B$14-C36*12),($C$44/12),0,0)-PV($B$15/12,($B$13*$B$14-D36*12),($C$44/12),0,0) -> 1258.156854 | E47: =PV($B$15/12,($B$13*$B$14-D36*12),($C$44/12),0,0)-PV($B$15/12,($B$13*$B$14-E36*12),($C$44/12),0,0) -> 1349.109115 | F47: =PV($B$15/12,($B$13*$B$14-E36*12),($C$44/12),0,0)-PV($B$15/12,($B$13*$B$14-F36*12),($C$44/12),0,0) -> 1446.636322 | G47: =PV($B$15/12,($B$13*$B$14-F36*12),($C$44/12),0,0)-PV($B$15/12,($B$13*$B$14-G36*12),($C$44/12),0,0) -> 1551.213779 | I47: Capital Gains Taxes | J47: =IF(J45<=0,0,J45*J46) -> 53487.40166
A48: Taxable Income | C48: =SUM(C45:C47) -> 26449.21023 | D48: =SUM(D45:D47) -> 26534.03081 | E48: =SUM(E45:E47) -> 26624.98307 | F48: =SUM(F45:F47) -> 26722.51027 | G48: =SUM(G45:G47) -> 26827.08773
A49: Less Taxes from BTCF | C49: =IF(C48>0,-C48*$B$20,0) -> -7405.778865 | D49: =IF(D48>0,-D48*$B$20,0) -> -7429.528626 | E49: =IF(E48>0,-E48*$B$20,0) -> -7454.995259 | F49: =IF(F48>0,-F48*$B$20,0) -> -7482.302877 | G49: =IF(G48>0,-G48*$B$20,0) -> -7511.584564 | I49: Accumulated Depreciation | J49: =-C46*5 -> 6627.948718
A50: Savings from Passive Actitivity Loss | C50: =IF($B$24="Y",IF(C48<0,IF($B$23<=100000,IF(-C48>25000,25000*$B$20,-C48*$B$20),IF($B$23<150000,IF(-C48>0.5*(150000-$B$23),0.5*(150000-$B$23)*$B$20,-C48*$B$20),0)),0),0) -> 0 | D50: =IF($B$24="Y",IF(D48<0,IF($B$23<=100000,IF(-D48>25000,25000*$B$20,-D48*$B$20),IF($B$23<150000,IF(-D48>0.5*(150000-$B$23),0.5*(150000-$B$23)*$B$20,-D48*$B$20),0)),0),0) -> 0 | E50: =IF($B$24="Y",IF(E48<0,IF($B$23<=100000,IF(-E48>25000,25000*$B$20,-E48*$B$20),IF($B$23<150000,IF(-E48>0.5*(150000-$B$23),0.5*(150000-$B$23)*$B$20,-E48*$B$20),0)),0),0) -> 0 | F50: =IF($B$24="Y",IF(F48<0,IF($B$23<=100000,IF(-F48>25000,25000*$B$20,-F48*$B$20),IF($B$23<150000,IF(-F48>0.5*(150000-$B$23),0.5*(150000-$B$23)*$B$20,-F48*$B$20),0)),0),0) -> 0 | G50: =IF($B$24="Y",IF(G48<0,IF($B$23<=100000,IF(-G48>25000,25000*$B$20,-G48*$B$20),IF($B$23<150000,IF(-G48>0.5*(150000-$B$23),0.5*(150000-$B$23)*$B$20,-G48*$B$20),0)),0),0) -> 0 | I50: X Recapture Tax Rate | J50: =B22 -> 0.25
A51: After-tax Cash Flow from Operations | C51: =C45+C49+C50 -> 19195.68483 | D51: =D45+D49+D50 -> 19171.93507 | E51: =E45+E49+E50 -> 19146.46844 | F51: =F45+F49+F50 -> 19119.16082 | G51: =G45+G49+G50 -> 19089.87913 | I51: Recapture Taxes | J51: =IF(J45>0,J49*J50,MAX((J49+J45)*J50,0)) -> 1656.987179
A52: Initial Equity Investment | B52: =-$B$8 -> -75000
A53: After-tax Cash on Sale | G53: =J56 -> 294071.0718 | I53: Before Tax Cash on Sale | J53: =J41 -> 349215.4606
A54: Total After-tax Cash Flow | B54: =SUM(B52:B53) -> -75000 | C54: =SUM(C51:C53) -> 19195.68483 | D54: =SUM(D51:D53) -> 19171.93507 | E54: =SUM(E51:E53) -> 19146.46844 | F54: =SUM(F51:F53) -> 19119.16082 | G54: =SUM(G51:G53) -> 313160.9509 | I54: Less Capital Gains Taxes | J54: =-J47 -> -53487.40166
I55: Less Recapture Taxes | J55: =-J51 -> -1656.987179
I56: After Tax Cash on Sale | J56: =SUM(J53:J55) -> 294071.0718
A57: Investment Measures
A58: First Year Measures
A59: Payback Period (years) | B59: =B8/C54 -> 3.907128121
A60: Profit Margin | B60: =C54/C40 -> 0.4000732972
A61: Default or Breakeven Ratio | B61: =-(C41+C44)/C40 -> 0.4455766812
A62: Operating Expense Ratio | B62: =-C41/C40 -> 0.31
A63: Debt Coverage Ratio | B63: =-C42/C44 -> 5.089370783
A64: Loan to Value Ratio | B64: =B12/B3 -> 0.505596646
A65: Effective Gross Income Multiplier | B65: =B3/C40 -> 3.161664696
A66: Capitalization Rate | B66: =C42/B3 -> 0.2182394613
A67: Before Tax Cash on Cash Return | B67: =-C45/B54 -> 0.3546861826
A68: After Tax Cash on Cash Return | B68: =-C54/B54 -> 0.2559424644
A70: Holding Period Measures
A71: Net Present Value | B71: =NPV($B$9,C54:G54)+B54 -> 314794.2001
A72: Internal Rate of Return | B72: =IRR(B54:G54) -> 0.4837481489

Sheet Results
A1: 1 | B1: 0.4487412832 | C1: 269539.71
A2: 2 | B2: 0.4523001037 | C2: 273917.29 | D2: IRR | I2: NPV
A3: 3 | B3: 0.4314846489 | C3: 249001.4 | D3: Average | E3: Std dev | F3: Min | G3: Max | I3: Average | J3: Std dev | K3: Min | L3: Max
A4: 4 | B4: 0.4323961363 | C4: 250058.09 | D4: =AVERAGE(B1:B1000) -> 0.4470093763 | E4: =STDEV(B1:B1000) -> 0.02539872964 | F4: =MIN(B1:B1000) -> 0.386440873 | G4: =MAX(B1:B1000) -> 0.5105283767 | I4: =AVERAGE(C1:C1000) -> 268675.7319 | J4: =STDEV(C1:C1000) -> 31258.14148 | K4: =MIN(C1:C1000) -> 200510.82 | L4: =MAX(C1:C1000) -> 352855.36
A5: 5 | B5: 0.4695921244 | C5: 295898.55
A6: 6 | B6: 0.3958529573 | C6: 210055.74
A7: 7 | B7: 0.4681806716 | C7: 294059.5
A8: 8 | B8: 0.4738162163 | C8: 301450.69
A9: 9 | B9: 0.4632555236 | C9: 287705.23
A10: 10 | B10: 0.4042527139 | C10: 218830.59
A11: 11 | B11: 0.4401030009 | C11: 259117.3
A12: 12 | B12: 0.4795063627 | C12: 309045.41
A13: 13 | B13: 0.4712228239 | C13: 298033.32
A14: 14 | B14: 0.4373269244 | C14: 255828.31
A15: 15 | B15: 0.4955941137 | C15: 331249.62
A16: 16 | B16: 0.4806411703 | C16: 310576.05
A17: 17 | B17: 0.4063636197 | C17: 221074.39
A18: 18 | B18: 0.4929423346 | C18: 327514.21
A19: 19 | B19: 0.4366841237 | C19: 255070.9
A20: 20 | B20: 0.448096117 | C20: 268751.37
A21: 21 | B21: 0.468819437 | C21: 294890.78
A22: 22 | B22: 0.4058557998 | C22: 220533.17
A23: 23 | B23: 0.4533263625 | C23: 275188.82
A24: 24 | B24: 0.4439663172 | C24: 263743.17
A25: 25 | B25: 0.4321200647 | C25: 249737.72
A26: 26 | B26: 0.4557766174 | C26: 278241.36
A27: 27 | B27: 0.4578731986 | C27: 280872.04
A28: 28 | B28: 0.4295143646 | C28: 246727.81
A29: 29 | B29: 0.4307156368 | C29: 248112.29
A30: 30 | B30: 0.4755470636 | C30: 303746.77
A31: 31 | B31: 0.4749519344 | C31: 302955.91
A32: 32 | B32: 0.4530638009 | C32: 274863.12
A33: 33 | B33: 0.5024190521 | C33: 341002.76
A34: 34 | B34: 0.486222932 | C34: 318182.94
A35: 35 | B35: 0.4264904855 | C35: 243266.41
A36: 36 | B36: 0.4619932893 | C36: 286092.4
A37: 37 | B37: 0.5003560051 | C37: 338033.31
A38: 38 | B38: 0.4279200099 | C38: 244898.56
A39: 39 | B39: 0.4487752725 | C39: 269581.28
A40: 40 | B40: 0.4140090116 | C40: 229332.83
A41: 41 | B41: 0.5105283767 | C41: 352855.36
A42: 42 | B42: 0.4603138772 | C42: 283956.36
A43: 43 | B43: 0.3964755567 | C43: 210697.78
A44: 44 | B44: 0.4519591101 | C44: 273495.71
A45: 45 | B45: 0.4131736685 | C45: 228420.39
A46: 46 | B46: 0.4135699113 | C46: 228852.9
A47: 47 | B47: 0.4721151745 | C47: 299206.09
A48: 48 | B48: 0.4311042155 | C48: 248561.28
A49: 49 | B49: 0.4043135722 | C49: 218895.06
A50: 50 | B50: 0.4319444086 | C50: 249534.02
A51: 51 | B51: 0.4379022841 | C51: 256507.58
A52: 52 | B52: 0.432324982 | C52: 249975.49
A53: 53 | B53: 0.4927454758 | C53: 327238.1
A54: 54 | B54: 0.50030194 | C54: 337955.74
A55: 55 | B55: 0.4392278905 | C55: 258077.35
A56: 56 | B56: 0.43063481 | C56: 248018.97
A57: 57 | B57: 0.4202571823 | C57: 236237.21
A58: 58 | B58: 0.4205031318 | C58: 236511.88
A59: 59 | B59: 0.4577688331 | C59: 280740.68
A60: 60 | B60: 0.4398285265 | C60: 258790.81
A61: 61 | B61: 0.4400151743 | C61: 259012.8
A62: 62 | B62: 0.4635944903 | C62: 288139.44
A63: 63 | B63: 0.4341214119 | C63: 252066.71
A64: 64 | B64: 0.4566442518 | C64: 279327.92
A65: 65 | B65: 0.4247983719 | C65: 241344.17
A66: 66 | B66: 0.4228019318 | C66: 239089.73
A67: 67 | B67: 0.4526033671 | C67: 274292.6
A68: 68 | B68: 0.410421535 | C68: 225431.86
A69: 69 | B69: 0.4431967834 | C69: 262817.2
A70: 70 | B70: 0.4854265414 | C70: 317089.63
A71: 71 | B71: 0.4293234564 | C71: 246508.28
A72: 72 | B72: 0.4706713751 | C72: 297310.2
A73: 73 | B73: 0.4376909311 | C73: 256257.91
A74: 74 | B74: 0.4314922883 | C74: 249010.24
A75: 75 | B75: 0.4875493212 | C75: 320009.77
A76: 76 | B76: 0.456524766 | C76: 279178.11
A77: 77 | B77: 0.4561847265 | C77: 278752.08
A78: 78 | B78: 0.4411087319 | C78: 260316.07
A79: 79 | B79: 0.4128925938 | C79: 228113.94
A80: 80 | B80: 0.4508559287 | C80: 272134.92
A81: 81 | B81: 0.4619367265 | C81: 286020.27
A82: 82 | B82: 0.486650426 | C82: 318770.92
A83: 83 | B83: 0.4761287577 | C83: 304521.19
A84: 84 | B84: 0.3987246612 | C84: 213028.2
A85: 85 | B85: 0.4494963818 | C85: 270464.42
A86: 86 | B86: 0.4870355571 | C86: 319301.29
A87: 87 | B87: 0.4412352351 | C87: 260467.13
A88: 88 | B88: 0.4604692376 | C88: 284153.49
A89: 89 | B89: 0.4464267921 | C89: 266719.08
A90: 90 | B90: 0.447263434 | C90: 267736.29
A91: 91 | B91: 0.4435553108 | C91: 263248.33
A92: 92 | B92: 0.4359759187 | C92: 254238.22
A93: 93 | B93: 0.4394663936 | C93: 258360.49
A94: 94 | B94: 0.4299777887 | C94: 247261.27
A95: 95 | B95: 0.4062452521 | C95: 220948.16
A96: 96 | B96: 0.4279129343 | C96: 244890.46
A97: 97 | B97: 0.5000708128 | C97: 337624.28
A98: 98 | B98: 0.4072035832 | C98: 221971.59
A99: 99 | B99: 0.4384672799 | C99: 257175.83
A100: 100 | B100: 0.43674993 | C100: 255148.36
A101: 101 | B101: 0.4455040771 | C101: 265600.34
A102: 102 | B102: 0.4197572155 | C102: 235679.55
A103: 103 | B103: 0.4443818194 | C103: 264244.08
A104: 104 | B104: 0.4289982924 | C104: 246134.67
A105: 105 | B105: 0.4562766143 | C105: 278867.16
A106: 106 | B106: 0.4493979646 | C106: 270343.77
A107: 107 | B107: 0.4198245762 | C107: 235754.63
A108: 108 | B108: 0.4908350777 | C108: 324567.24
A109: 109 | B109: 0.4584405852 | C109: 281586.95
A110: 110 | B110: 0.4466953969 | C110: 267045.36
A111: 111 | B111: 0.4384795928 | C111: 257190.41
A112: 112 | B112: 0.4141394678 | C112: 229475.56
A113: 113 | B113: 0.4705448131 | C113: 297144.42
A114: 114 | B114: 0.4433161404 | C114: 262960.67
A115: 115 | B115: 0.467485517 | C115: 293156.72
A116: 116 | B116: 0.4536170806 | C116: 275549.77
A117: 117 | B117: 0.4758857807 | C117: 304197.54
A118: 118 | B118: 0.3975205725 | C118: 211778.41
A119: 119 | B119: 0.4250497903 | C119: 241629.12
A120: 120 | B120: 0.4093759845 | C120: 224303.56
A121: 121 | B121: 0.4138894656 | C121: 229202.1
A122: 122 | B122: 0.4345014608 | C122: 252510.67
A123: 123 | B123: 0.4167097444 | C123: 232299.94
A124: 124 | B124: 0.386440873 | C124: 200510.82
A125: 125 | B125: 0.4489966721 | C125: 269852.21
A126: 126 | B126: 0.4586588863 | C126: 281862.35
A127: 127 | B127: 0.4495462568 | C127: 270525.57
A128: 128 | B128: 0.4752725539 | C128: 303381.8
A129: 129 | B129: 0.4105989353 | C129: 225623.69
A130: 130 | B130: 0.4233617351 | C130: 239720.4
A131: 131 | B131: 0.4605540588 | C131: 284261.16
A132: 132 | B132: 0.4429281945 | C132: 262494.54
A133: 133 | B133: 0.4362138757 | C133: 254517.79
A134: 134 | B134: 0.4191515257 | C134: 235005.17
A135: 135 | B135: 0.4628319228 | C135: 287163.26
A136: 136 | B136: 0.4891107696 | C136: 322169.86
A137: 137 | B137: 0.448498575 | C137: 269242.95
A138: 138 | B138: 0.4117319058 | C138: 226851.43
A139: 139 | B139: 0.467883766 | C139: 293673.68
A140: 140 | B140: 0.439260103 | C140: 258115.58
A141: 141 | B141: 0.4434760562 | C141: 263152.98
A142: 142 | B142: 0.4456702682 | C142: 265801.6
A143: 143 | B143: 0.4248043186 | C143: 241350.91
A144: 144 | B144: 0.4343662555 | C144: 252352.67
A145: 145 | B145: 0.4125440015 | C145: 227734.26
A146: 146 | B146: 0.4531138975 | C146: 274925.24
A147: 147 | B147: 0.4212203597 | C147: 237314.1
A148: 148 | B148: 0.4889117136 | C148: 321893.92
A149: 149 | B149: 0.4128866102 | C149: 228107.42
A150: 150 | B150: 0.4421934662 | C150: 261613.32
A151: 151 | B151: 0.4302262788 | C151: 247547.65
A152: 152 | B152: 0.4807851419 | C152: 310770.62
A153: 153 | B153: 0.4671916305 | C153: 292775.64
A154: 154 | B154: 0.4302259344 | C154: 247547.25
A155: 155 | B155: 0.4600927088 | C155: 283675.89
A156: 156 | B156: 0.4289473805 | C156: 246076.21
A157: 157 | B157: 0.4117682989 | C157: 226890.94
A158: 158 | B158: 0.4009910034 | C158: 215394.17
A159: 159 | B159: 0.4338779294 | C159: 251782.57
A160: 160 | B160: 0.4711858818 | C160: 297984.84
A161: 161 | B161: 0.4320535397 | C161: 249660.56
A162: 162 | B162: 0.4272027984 | C162: 244078.74
A163: 163 | B163: 0.444817674 | C163: 264770.24
A164: 164 | B164: 0.4287853313 | C164: 245890.2
A165: 165 | B165: 0.4351110048 | C165: 253223.85
A166: 166 | B166: 0.404166346 | C166: 218739.12
A167: 167 | B167: 0.4449596163 | C167: 264941.75
A168: 168 | B168: 0.4246592955 | C168: 241186.65
A169: 169 | B169: 0.4797497544 | C169: 309373.25
A170: 170 | B170: 0.4530212981 | C170: 274810.42
A171: 171 | B171: 0.4676054724 | C171: 293312.36
A172: 172 | B172: 0.4889569529 | C172: 321956.62
A173: 173 | B173: 0.4344547393 | C173: 252456.06
A174: 174 | B174: 0.4494643795 | C174: 270425.18
A175: 175 | B175: 0.410418014 | C175: 225428.06
A176: 176 | B176: 0.4567436333 | C176: 279452.57
A177: 177 | B177: 0.4398259968 | C177: 258787.81
A178: 178 | B178: 0.4952466521 | C178: 330758.46
A179: 179 | B179: 0.4150605907 | C179: 230485.02
A180: 180 | B180: 0.4882135147 | C180: 320927.35
A181: 181 | B181: 0.455572184 | C181: 277985.78
A182: 182 | B182: 0.4355914153 | C182: 253786.93
A183: 183 | B183: 0.4190722184 | C183: 234916.97
A184: 184 | B184: 0.4447816317 | C184: 264726.71
A185: 185 | B185: 0.4258468356 | C185: 242533.98
A186: 186 | B186: 0.5057957743 | C186: 345903.09
A187: 187 | B187: 0.4169634017 | C187: 232579.97
A188: 188 | B188: 0.400461922 | C188: 214840.24
A189: 189 | B189: 0.4354345045 | C189: 253602.92
A190: 190 | B190: 0.4498257349 | C190: 270868.44
A191: 191 | B191: 0.488132565 | C191: 320815.42
A192: 192 | B192: 0.4491069503 | C192: 269987.23
A193: 193 | B193: 0.4395759754 | C193: 258490.66
A194: 194 | B194: 0.4776047324 | C194: 306492.42
A195: 195 | B195: 0.4751369049 | C195: 303201.56
A196: 196 | B196: 0.4599863557 | C196: 283541.09
A197: 197 | B197: 0.4644437349 | C197: 289229.31
A198: 198 | B198: 0.507728139 | C198: 348729.84
A199: 199 | B199: 0.4350566324 | C199: 253160.18
A200: 200 | B200: 0.4458936084 | C200: 266072.23
... 800 more rows
